[Event "*** SCC Grand Prix: Titled Tuesday Blitz"]
[Site "Chess.com"]
[Date "2020.08.25"]
[Round "6"]
[White "Misticpikachu"]
[Black "Beltraxtor"]
[Result "0-1"]
[WhiteElo "2328"]
[BlackElo "2542"]
[TimeControl "180+1"]
[EndTime "11:09:30 PDT"]
[Termination "Beltraxtor won by resignation"]

1. c4 {[%clk 0:03:00.9]} 1... c6 {[%clk 0:02:55.9]} 2. Nf3 {[%clk 0:03:00.7]}
2... Nf6 {[%clk 0:02:55.5]} 3. e3 {[%clk 0:03:01.2]} 3... d5 {[%clk 0:02:55.8]}
4. Nc3 {[%clk 0:03:01.7]} 4... a6 {[%clk 0:02:55.8]} 5. b3 {[%clk 0:02:53.5]}
5... Bf5 {[%clk 0:02:55.8]} 6. Bb2 {[%clk 0:02:52.8]} 6... e6 {[%clk 0:02:55.7]}
7. d4 {[%clk 0:02:51.2]} 7... Nbd7 {[%clk 0:02:51.6]} 8. Bd3 {[%clk 0:02:49.9]}
8... Bxd3 {[%clk 0:02:45.8]} 9. Qxd3 {[%clk 0:02:49.6]} 9... Qa5 {[%clk
0:02:46.7]} 10. O-O {[%clk 0:02:49.6]} 10... b5 {[%clk 0:02:43.2]} 11. e4 {[%clk
0:02:34.3]} 11... b4 {[%clk 0:02:30.7]} 12. e5 {[%clk 0:02:27.7]} 12... bxc3
{[%clk 0:02:28.7]} 13. Bxc3 {[%clk 0:02:27.8]} 13... Bb4 {[%clk 0:02:29.3]} 14.
Bxb4 {[%clk 0:02:27.5]} 14... Qxb4 {[%clk 0:02:30.2]} 15. exf6 {[%clk
0:02:27.8]} 15... Nxf6 {[%clk 0:02:31.1]} 16. Ne5 {[%clk 0:02:25.4]} 16... Qb7
{[%clk 0:02:26.5]} 17. cxd5 {[%clk 0:02:01.3]} 17... cxd5 {[%clk 0:02:24]} 18.
Rac1 {[%clk 0:01:59]} 18... O-O {[%clk 0:02:22.1]} 19. Rc6 {[%clk 0:01:55.1]}
19... Nd7 {[%clk 0:02:14]} 20. Rfc1 {[%clk 0:01:39]} 20... Nxe5 {[%clk
0:02:06.5]} 21. dxe5 {[%clk 0:01:39.9]} 21... Rfc8 {[%clk 0:02:02.6]} 22. Qc3
{[%clk 0:01:35.8]} 22... Rxc6 {[%clk 0:01:59.8]} 23. Qxc6 {[%clk 0:01:36.7]}
23... Qxc6 {[%clk 0:01:57.9]} 24. Rxc6 {[%clk 0:01:37.6]} 24... g5 {[%clk
0:01:57.2]} 25. g4 {[%clk 0:01:18.9]} 25... a5 {[%clk 0:01:56.5]} 26. Kg2 {[%clk
0:01:13.6]} 26... a4 {[%clk 0:01:51.3]} 27. b4 {[%clk 0:01:13.3]} 27... a3
{[%clk 0:01:48.7]} 28. Rc3 {[%clk 0:01:10.2]} 28... Ra4 {[%clk 0:01:27.1]} 29.
Rb3 {[%clk 0:01:07.5]} 29... Kf8 {[%clk 0:01:27.7]} 30. Kg3 {[%clk 0:00:58.4]}
30... Ke7 {[%clk 0:01:26.5]} 31. Kf3 {[%clk 0:00:36.4]} 31... Kd7 {[%clk
0:01:25.6]} 32. Ke3 {[%clk 0:00:36.8]} 32... Kc6 {[%clk 0:01:25.7]} 33. h3
{[%clk 0:00:33.6]} 33... Kb5 {[%clk 0:01:25.1]} 34. Kd3 {[%clk 0:00:29.9]} 34...
h6 {[%clk 0:01:21.4]} 35. Kc3 {[%clk 0:00:27.3]} 35... Ra7 {[%clk 0:01:20]} 36.
Kd3 {[%clk 0:00:22.9]} 36... Ra6 {[%clk 0:01:14.5]} 37. Kc3 {[%clk 0:00:20.4]}
37... Ka4 {[%clk 0:01:09.2]} 38. Kd4 {[%clk 0:00:14.1]} 38... Rb6 {[%clk
0:01:07.5]} 39. Kc3 {[%clk 0:00:08.1]} 39... Rb7 {[%clk 0:00:58.8]} 40. b5
{[%clk 0:00:07.3]} 40... Rxb5 {[%clk 0:00:57.6]} 41. Rxb5 {[%clk 0:00:07.1]}
41... Kxb5 {[%clk 0:00:58.5]} 42. Kb3 {[%clk 0:00:07.9]} 42... d4 {[%clk
0:00:20.3]} 43. Kxa3 {[%clk 0:00:07.6]} 43... Kc4 {[%clk 0:00:21.2]} 44. Kb2
{[%clk 0:00:07.3]} 44... Kd3 {[%clk 0:00:19.6]} 45. a4 {[%clk 0:00:07]} 45...
Ke2 {[%clk 0:00:17.6]} 46. a5 {[%clk 0:00:07.4]} 46... d3 {[%clk 0:00:18.1]} 47.
a6 {[%clk 0:00:08.3]} 47... d2 {[%clk 0:00:18.3]} 48. a7 {[%clk 0:00:09.2]}
48... d1=Q {[%clk 0:00:17.8]} 49. a8=Q {[%clk 0:00:10.1]} 49... Qd4+ {[%clk
0:00:17.8]} 50. Kb3 {[%clk 0:00:07.5]} 50... Kxf2 {[%clk 0:00:16.3]} 51. Qf8
{[%clk 0:00:04.8]} 51... Qe3+ {[%clk 0:00:09.9]} 52. Kc4 {[%clk 0:00:04.6]}
52... Kg3 {[%clk 0:00:06.6]} 53. Qxf7 {[%clk 0:00:04.5]} 53... Qf4+ {[%clk
0:00:06.8]} 54. Qxf4+ {[%clk 0:00:04]} 54... gxf4 {[%clk 0:00:07.7]} 55. g5
{[%clk 0:00:02.6]} 55... hxg5 {[%clk 0:00:07.6]} 0-1

[Event "*** SCC Grand Prix: Titled Tuesday Blitz"]
[Site "Chess.com"]
[Date "2020.08.25"]
[Round "6"]
[White "Miss_JJ20"]
[Black "ruslansezdbekov"]
[Result "1-0"]
[WhiteElo "2423"]
[BlackElo "2538"]
[TimeControl "180+1"]
[EndTime "11:09:30 PDT"]
[Termination "Miss_JJ20 won on time"]

1. d4 {[%clk 0:03:00.9]} 1... Nf6 {[%clk 0:02:58.4]} 2. c4 {[%clk 0:03:01.1]}
2... g6 {[%clk 0:02:57.5]} 3. g3 {[%clk 0:03:01.7]} 3... Bg7 {[%clk 0:02:55.2]}
4. Bg2 {[%clk 0:03:01.4]} 4... O-O {[%clk 0:02:54.2]} 5. Nc3 {[%clk 0:02:58.3]}
5... c6 {[%clk 0:02:53.6]} 6. Nf3 {[%clk 0:02:57.2]} 6... d5 {[%clk 0:02:52]} 7.
cxd5 {[%clk 0:02:58.1]} 7... cxd5 {[%clk 0:02:51.5]} 8. Ne5 {[%clk 0:02:58.3]}
8... e6 {[%clk 0:02:50.2]} 9. O-O {[%clk 0:02:58.1]} 9... Nfd7 {[%clk
0:02:49.8]} 10. Bf4 {[%clk 0:02:37.1]} 10... Nc6 {[%clk 0:02:18.9]} 11. Nxc6
{[%clk 0:02:21.9]} 11... bxc6 {[%clk 0:02:16.9]} 12. Qa4 {[%clk 0:02:20.9]}
12... Bb7 {[%clk 0:01:57.6]} 13. Rfd1 {[%clk 0:02:10.5]} 13... a5 {[%clk
0:01:37.4]} 14. e4 {[%clk 0:01:48]} 14... Nb6 {[%clk 0:01:33.4]} 15. Qc2 {[%clk
0:01:47.6]} 15... Rc8 {[%clk 0:01:28.1]} 16. Rac1 {[%clk 0:01:39.4]} 16... g5
{[%clk 0:01:10.2]} 17. Be3 {[%clk 0:01:25]} 17... Nc4 {[%clk 0:01:01.7]} 18. Na4
{[%clk 0:01:09.9]} 18... Nxe3 {[%clk 0:00:48.2]} 19. fxe3 {[%clk 0:01:10.8]}
19... Ba8 {[%clk 0:00:40.7]} 20. e5 {[%clk 0:01:04.8]} 20... f6 {[%clk
0:00:26.9]} 21. Nc5 {[%clk 0:01:04.7]} 21... Qe7 {[%clk 0:00:23.6]} 22. exf6
{[%clk 0:00:47.4]} 22... Rxf6 {[%clk 0:00:22]} 23. Bh3 {[%clk 0:00:37.4]} 23...
h5 {[%clk 0:00:18.7]} 24. Rf1 {[%clk 0:00:20.4]} 24... g4 {[%clk 0:00:18]} 25.
Bg2 {[%clk 0:00:20.1]} 25... Rcf8 {[%clk 0:00:17.2]} 26. Rxf6 {[%clk 0:00:12.4]}
26... Rxf6 {[%clk 0:00:18.1]} 27. Rf1 {[%clk 0:00:12.8]} 27... e5 {[%clk
0:00:16.3]} 28. Rxf6 {[%clk 0:00:04.3]} 28... Bxf6 {[%clk 0:00:15.1]} 29. Qg6+
{[%clk 0:00:03.4]} 29... Kf8 {[%clk 0:00:11.9]} 30. Qxf6+ {[%clk 0:00:02.3]}
30... Qxf6 {[%clk 0:00:11.2]} 31. Nd7+ {[%clk 0:00:03.2]} 31... Ke7 {[%clk
0:00:11]} 32. Nxf6 {[%clk 0:00:04.1]} 32... Kxf6 {[%clk 0:00:11.3]} 33. Kf2
{[%clk 0:00:04.5]} 33... e4 {[%clk 0:00:10.7]} 34. Bf1 {[%clk 0:00:04.3]} 34...
Ke7 {[%clk 0:00:10.7]} 35. Ba6 {[%clk 0:00:04.1]} 35... Kd6 {[%clk 0:00:10.3]}
36. a3 {[%clk 0:00:03.5]} 36... Kc7 {[%clk 0:00:08.1]} 37. Be2 {[%clk
0:00:01.9]} 37... Kb6 {[%clk 0:00:08]} 38. Bf1 {[%clk 0:00:02.4]} 38... c5
{[%clk 0:00:07.4]} 39. h3 {[%clk 0:00:03.3]} 39... cxd4 {[%clk 0:00:05.6]} 40.
exd4 {[%clk 0:00:04.2]} 40... Bc6 {[%clk 0:00:04.8]} 41. hxg4 {[%clk 0:00:04.5]}
41... hxg4 {[%clk 0:00:05.7]} 42. Be2 {[%clk 0:00:05.3]} 42... Bd7 {[%clk
0:00:04.6]} 43. Ke3 {[%clk 0:00:05.9]} 43... a4 {[%clk 0:00:03.6]} 44. Kf4
{[%clk 0:00:05.5]} 44... Bb5 {[%clk 0:00:04.2]} 45. Bxg4 {[%clk 0:00:05.4]}
45... Bd3 {[%clk 0:00:04.3]} 46. Ke3 {[%clk 0:00:05.1]} 46... Kb5 {[%clk
0:00:05.2]} 47. Bd7+ {[%clk 0:00:05.4]} 47... Kc4 {[%clk 0:00:04.2]} 48. Bxa4
{[%clk 0:00:05.4]} 48... Bf1 {[%clk 0:00:03.5]} 49. g4 {[%clk 0:00:05.5]} 49...
Bh3 {[%clk 0:00:03.4]} 50. g5 {[%clk 0:00:05.8]} 50... Bf5 {[%clk 0:00:04.3]}
51. Be8 {[%clk 0:00:06.3]} 51... Kb3 {[%clk 0:00:01.8]} 52. g6 {[%clk
0:00:06.6]} 52... Kxb2 {[%clk 0:00:01.1]} 53. a4 {[%clk 0:00:07]} 53... Be6
{[%clk 0:00:01.1]} 54. a5 {[%clk 0:00:06.5]} 1-0

[Event "*** SCC Grand Prix: Titled Tuesday Blitz"]
[Site "Chess.com"]
[Date "2020.08.25"]
[Round "6"]
[White "GaboSalazar2001"]
[Black "Jovidon91"]
[Result "1/2-1/2"]
[WhiteElo "2297"]
[BlackElo "2464"]
[TimeControl "180+1"]
[EndTime "11:09:30 PDT"]
[Termination "Game drawn by repetition"]

1. e4 {[%clk 0:03:00.9]} 1... c5 {[%clk 0:02:59.6]} 2. Nf3 {[%clk 0:03:01.4]}
2... e6 {[%clk 0:02:58.9]} 3. c4 {[%clk 0:03:00.9]} 3... a6 {[%clk 0:02:56.5]}
4. d4 {[%clk 0:03:00.7]} 4... cxd4 {[%clk 0:02:57.4]} 5. Nxd4 {[%clk 0:03:01.6]}
5... Qc7 {[%clk 0:02:56.7]} 6. Nc3 {[%clk 0:03:01.6]} 6... Nf6 {[%clk
0:02:57.2]} 7. Be2 {[%clk 0:02:49.9]} 7... Bb4 {[%clk 0:02:57.1]} 8. Qd3 {[%clk
0:02:49.2]} 8... Nc6 {[%clk 0:02:57.1]} 9. O-O {[%clk 0:02:43.2]} 9... O-O
{[%clk 0:02:55.1]} 10. Bg5 {[%clk 0:02:22.9]} 10... Be7 {[%clk 0:02:30.7]} 11.
Rac1 {[%clk 0:02:22.3]} 11... d6 {[%clk 0:02:29]} 12. Nxc6 {[%clk 0:01:49.8]}
12... Qxc6 {[%clk 0:02:17]} 13. f4 {[%clk 0:01:39.6]} 13... Bd7 {[%clk 0:01:44]}
14. Kh1 {[%clk 0:01:39.6]} 14... h6 {[%clk 0:01:31.8]} 15. Bh4 {[%clk
0:01:26.5]} 15... Rfe8 {[%clk 0:00:49.2]} 16. Bf3 {[%clk 0:01:24.3]} 16... Qc5
{[%clk 0:00:44.2]} 17. Bf2 {[%clk 0:01:23.2]} 17... Qc7 {[%clk 0:00:43.4]} 18.
Rfd1 {[%clk 0:01:19.7]} 18... Bc6 {[%clk 0:00:40.8]} 19. Nd5 {[%clk 0:01:10.6]}
19... Qd8 {[%clk 0:00:14.4]} 20. Bb6 {[%clk 0:01:00.8]} 20... Qd7 {[%clk
0:00:07.5]} 21. Nc7 {[%clk 0:00:56.1]} 21... Rac8 {[%clk 0:00:07.2]} 22. Nxe8
{[%clk 0:00:55.9]} 22... Qxe8 {[%clk 0:00:08.1]} 23. e5 {[%clk 0:00:51]} 23...
dxe5 {[%clk 0:00:07.4]} 24. fxe5 {[%clk 0:00:50.6]} 24... Bxf3 {[%clk
0:00:06.9]} 25. exf6 {[%clk 0:00:33.7]} 25... Bxd1 {[%clk 0:00:06.5]} 26. fxe7
{[%clk 0:00:34.1]} 26... Ba4 {[%clk 0:00:06.3]} 27. Qd8 {[%clk 0:00:26.1]} 27...
Bc6 {[%clk 0:00:04.8]} 28. Rd1 {[%clk 0:00:24.6]} 28... Kh7 {[%clk 0:00:04]} 29.
Qxe8 {[%clk 0:00:19.3]} 29... Rxe8 {[%clk 0:00:04]} 30. Bc5 {[%clk 0:00:19.3]}
30... f5 {[%clk 0:00:03.8]} 31. Rd8 {[%clk 0:00:19.1]} 31... Kg6 {[%clk
0:00:04.1]} 32. Rxe8 {[%clk 0:00:18.6]} 32... Bxe8 {[%clk 0:00:04.2]} 33. Kg1
{[%clk 0:00:19.2]} 33... e5 {[%clk 0:00:04.6]} 34. Bd6 {[%clk 0:00:18.6]} 34...
Kf6 {[%clk 0:00:04.6]} 35. c5 {[%clk 0:00:18.7]} 35... Ke6 {[%clk 0:00:04.8]}
36. Kf2 {[%clk 0:00:18.6]} 36... g5 {[%clk 0:00:04.4]} 37. Ke3 {[%clk
0:00:17.8]} 37... Kd5 {[%clk 0:00:04.8]} 38. b3 {[%clk 0:00:17]} 38... e4 {[%clk
0:00:05]} 39. g3 {[%clk 0:00:16.5]} 39... Bc6 {[%clk 0:00:04.7]} 40. a4 {[%clk
0:00:12.4]} 40... Be8 {[%clk 0:00:04.6]} 41. Bc7 {[%clk 0:00:12.5]} 41... Kxc5
{[%clk 0:00:04]} 42. Be5 {[%clk 0:00:11.7]} 42... Kd5 {[%clk 0:00:04.3]} 43. Bg7
{[%clk 0:00:11.8]} 43... h5 {[%clk 0:00:01.6]} 44. Bh6 {[%clk 0:00:12.1]} 44...
Ke6 {[%clk 0:00:02.5]} 45. Bxg5 {[%clk 0:00:12.2]} 45... Bd7 {[%clk 0:00:03.4]}
46. h4 {[%clk 0:00:12]} 46... Be8 {[%clk 0:00:04.3]} 47. Kf4 {[%clk 0:00:12.3]}
47... Bf7 {[%clk 0:00:05.2]} 48. Ke3 {[%clk 0:00:12.3]} 48... Be8 {[%clk
0:00:05.5]} 49. b4 {[%clk 0:00:12.7]} 49... Bxa4 {[%clk 0:00:05.6]} 50. Kd4
{[%clk 0:00:12.5]} 50... Be8 {[%clk 0:00:06.5]} 51. Kc5 {[%clk 0:00:12.9]} 51...
Bc6 {[%clk 0:00:07]} 52. Kb6 {[%clk 0:00:13.2]} 52... Kd7 {[%clk 0:00:07.4]} 53.
Kc5 {[%clk 0:00:11.3]} 53... Bb5 {[%clk 0:00:07.7]} 54. Kb6 {[%clk 0:00:08.6]}
54... Bc6 {[%clk 0:00:07.5]} 55. Kc5 {[%clk 0:00:08.8]} 55... Ke6 {[%clk
0:00:07.9]} 56. Kd4 {[%clk 0:00:08.6]} 56... Be8 {[%clk 0:00:07.5]} 57. Kc5
{[%clk 0:00:08.7]} 57... Bc6 {[%clk 0:00:06.2]} 1/2-1/2

[Event "*** SCC Grand Prix: Titled Tuesday Blitz"]
[Site "Chess.com"]
[Date "2020.08.25"]
[Round "6"]
[White "ChessBitl"]
[Black "Dedic8"]
[Result "1/2-1/2"]
[WhiteElo "2513"]
[BlackElo "2742"]
[TimeControl "180+1"]
[EndTime "11:09:31 PDT"]
[Termination "Game drawn - insufficient material"]

1. e4 {[%clk 0:03:00.5]} 1... e5 {[%clk 0:02:59.9]} 2. Nf3 {[%clk 0:03:00]} 2...
Nc6 {[%clk 0:03:00.2]} 3. d4 {[%clk 0:03:00.4]} 3... exd4 {[%clk 0:03:00.2]} 4.
Bc4 {[%clk 0:03:00.9]} 4... Nf6 {[%clk 0:03:00.2]} 5. O-O {[%clk 0:03:00.3]}
5... Be7 {[%clk 0:02:50.9]} 6. Nxd4 {[%clk 0:02:57.2]} 6... Nxe4 {[%clk
0:02:44.8]} 7. Re1 {[%clk 0:02:55.3]} 7... d5 {[%clk 0:02:38.2]} 8. Bb5 {[%clk
0:02:25]} 8... Bd7 {[%clk 0:02:37.9]} 9. c4 {[%clk 0:02:22.9]} 9... O-O {[%clk
0:02:05.6]} 10. cxd5 {[%clk 0:02:18.1]} 10... Nxd4 {[%clk 0:02:05.4]} 11. Bxd7
{[%clk 0:02:13.7]} 11... Qxd7 {[%clk 0:02:04.9]} 12. Rxe4 {[%clk 0:02:14.2]}
12... Nf5 {[%clk 0:01:59]} 13. Nc3 {[%clk 0:02:09.9]} 13... Bf6 {[%clk
0:01:59.1]} 14. Qb3 {[%clk 0:02:05.5]} 14... Rae8 {[%clk 0:01:47.5]} 15. Bf4
{[%clk 0:01:51.9]} 15... Bxc3 {[%clk 0:01:45.8]} 16. Rxe8 {[%clk 0:01:51]} 16...
Rxe8 {[%clk 0:01:46.7]} 17. bxc3 {[%clk 0:01:43.1]} 17... c6 {[%clk 0:01:26.7]}
18. d6 {[%clk 0:01:42]} 18... Nxd6 {[%clk 0:01:12.6]} 19. Bxd6 {[%clk
0:01:41.6]} 19... Qxd6 {[%clk 0:01:12.5]} 20. Qxb7 {[%clk 0:01:42.1]} 20... Qc5
{[%clk 0:01:12.8]} 21. Qb4 {[%clk 0:01:32.8]} 21... Qf5 {[%clk 0:01:00.4]} 22.
h3 {[%clk 0:01:31.1]} 22... h5 {[%clk 0:01:00.3]} 23. Rd1 {[%clk 0:01:22.7]}
23... Re2 {[%clk 0:00:55.4]} 24. Qb8+ {[%clk 0:01:17.1]} 24... Kh7 {[%clk
0:00:55.1]} 25. Qxa7 {[%clk 0:01:17.6]} 25... c5 {[%clk 0:00:38.5]} 26. Rf1
{[%clk 0:01:13.8]} 26... Rc2 {[%clk 0:00:35.3]} 27. a4 {[%clk 0:01:13.9]} 27...
Rxc3 {[%clk 0:00:34.6]} 28. a5 {[%clk 0:01:10.6]} 28... Ra3 {[%clk 0:00:34.9]}
29. Rc1 {[%clk 0:01:05.7]} 29... c4 {[%clk 0:00:31.3]} 30. a6 {[%clk 0:01:01.3]}
30... c3 {[%clk 0:00:22.9]} 31. Qd4 {[%clk 0:00:56.7]} 31... c2 {[%clk
0:00:19.9]} 32. Qb2 {[%clk 0:00:51.8]} 32... Rxa6 {[%clk 0:00:18.1]} 33. Qxc2
{[%clk 0:00:51.3]} 33... Qxc2 {[%clk 0:00:17.9]} 34. Rxc2 {[%clk 0:00:51.7]}
34... Kg6 {[%clk 0:00:17.9]} 35. g3 {[%clk 0:00:51.8]} 35... h4 {[%clk
0:00:17.7]} 36. Kg2 {[%clk 0:00:51]} 36... Ra4 {[%clk 0:00:17.6]} 37. Rd2 {[%clk
0:00:49.3]} 37... hxg3 {[%clk 0:00:17.8]} 38. fxg3 {[%clk 0:00:49]} 38... Ra3
{[%clk 0:00:18.3]} 39. Rc2 {[%clk 0:00:48.4]} 39... f6 {[%clk 0:00:18.6]} 40.
Rd2 {[%clk 0:00:48]} 40... Kg5 {[%clk 0:00:19.1]} 41. Rd5+ {[%clk 0:00:47.5]}
41... f5 {[%clk 0:00:19.4]} 42. g4 {[%clk 0:00:46]} 42... Ra2+ {[%clk
0:00:19.3]} 43. Kg3 {[%clk 0:00:44.9]} 43... Ra3+ {[%clk 0:00:19.2]} 44. Kg2
{[%clk 0:00:45.1]} 44... g6 {[%clk 0:00:20.1]} 45. gxf5 {[%clk 0:00:38.6]} 45...
gxf5 {[%clk 0:00:21]} 46. Rb5 {[%clk 0:00:35.6]} 46... Rd3 {[%clk 0:00:18.9]}
47. Ra5 {[%clk 0:00:34.6]} 47... Kf4 {[%clk 0:00:19.3]} 48. Ra4+ {[%clk
0:00:25.8]} 48... Ke3 {[%clk 0:00:19.5]} 49. Kg3 {[%clk 0:00:25.9]} 49... Rd1
{[%clk 0:00:12.7]} 50. Ra3+ {[%clk 0:00:25]} 50... Ke4 {[%clk 0:00:13]} 51. Ra4+
{[%clk 0:00:25.2]} 51... Ke5 {[%clk 0:00:13.5]} 52. Ra5+ {[%clk 0:00:24.7]}
52... Kf6 {[%clk 0:00:13.9]} 53. h4 {[%clk 0:00:23.7]} 53... Rd3+ {[%clk
0:00:13]} 54. Kf4 {[%clk 0:00:20.6]} 54... Rd4+ {[%clk 0:00:13.2]} 55. Kg3
{[%clk 0:00:20.7]} 55... Rg4+ {[%clk 0:00:13.6]} 56. Kh3 {[%clk 0:00:20.9]}
56... Rg1 {[%clk 0:00:13.8]} 57. Ra6+ {[%clk 0:00:18.5]} 57... Kg7 {[%clk
0:00:11.3]} 58. h5 {[%clk 0:00:15.9]} 58... Rh1+ {[%clk 0:00:10.3]} 59. Kg3
{[%clk 0:00:16]} 59... Rxh5 {[%clk 0:00:11.2]} 60. Kf4 {[%clk 0:00:16.1]} 60...
Kf7 {[%clk 0:00:11.6]} 61. Rb6 {[%clk 0:00:15.5]} 61... Kg7 {[%clk 0:00:11.3]}
62. Ra6 {[%clk 0:00:15.5]} 62... Kh7 {[%clk 0:00:10.7]} 63. Rb6 {[%clk
0:00:15.5]} 63... Kg7 {[%clk 0:00:10.4]} 64. Rc6 {[%clk 0:00:15.6]} 64... Rh6
{[%clk 0:00:10.9]} 65. Rxh6 {[%clk 0:00:15.2]} 65... Kxh6 {[%clk 0:00:11.8]} 66.
Kxf5 {[%clk 0:00:15.5]} 1/2-1/2

[Event "*** SCC Grand Prix: Titled Tuesday Blitz"]
[Site "Chess.com"]
[Date "2020.08.25"]
[Round "6"]
[White "talman67"]
[Black "Skatchkov_V"]
[Result "0-1"]
[WhiteElo "2509"]
[BlackElo "2687"]
[TimeControl "180+1"]
[EndTime "11:09:36 PDT"]
[Termination "Skatchkov_V won by resignation"]

1. e4 {[%clk 0:03:00.9]} 1... e5 {[%clk 0:02:59.9]} 2. Nf3 {[%clk 0:03:01.2]}
2... Nf6 {[%clk 0:03:00]} 3. Nc3 {[%clk 0:03:00.4]} 3... Nc6 {[%clk 0:03:00]} 4.
d4 {[%clk 0:03:00.3]} 4... exd4 {[%clk 0:02:59.5]} 5. Nxd4 {[%clk 0:03:01.2]}
5... Bb4 {[%clk 0:02:58.6]} 6. Nxc6 {[%clk 0:03:00.8]} 6... bxc6 {[%clk
0:02:59.3]} 7. Bd3 {[%clk 0:03:00.5]} 7... d5 {[%clk 0:02:59.5]} 8. exd5 {[%clk
0:03:01.4]} 8... O-O {[%clk 0:02:58]} 9. O-O {[%clk 0:03:01.5]} 9... Bg4 {[%clk
0:02:55.3]} 10. Qd2 {[%clk 0:02:47.6]} 10... cxd5 {[%clk 0:02:50.3]} 11. Qf4
{[%clk 0:02:45]} 11... Bd6 {[%clk 0:02:45.2]} 12. Qg5 {[%clk 0:02:44.9]} 12...
c6 {[%clk 0:02:38.8]} 13. h3 {[%clk 0:02:44.8]} 13... Bh5 {[%clk 0:02:30.3]} 14.
Qh4 {[%clk 0:02:43]} 14... Rb8 {[%clk 0:02:18.4]} 15. Bg5 {[%clk 0:02:35]} 15...
Bg6 {[%clk 0:02:14.3]} 16. Bxf6 {[%clk 0:02:34.6]} 16... Qxf6 {[%clk 0:02:11.5]}
17. Qxf6 {[%clk 0:02:34.4]} 17... gxf6 {[%clk 0:02:12.4]} 18. Rab1 {[%clk
0:02:32.7]} 18... Rfe8 {[%clk 0:02:07.3]} 19. b3 {[%clk 0:02:14.4]} 19... Kg7
{[%clk 0:01:59.2]} 20. Rfd1 {[%clk 0:02:08.2]} 20... a5 {[%clk 0:01:51.3]} 21.
Kf1 {[%clk 0:02:07.3]} 21... Be5 {[%clk 0:01:48.2]} 22. Na4 {[%clk 0:02:06.4]}
22... h5 {[%clk 0:01:32.9]} 23. g3 {[%clk 0:01:56.6]} 23... h4 {[%clk 0:01:30]}
24. f4 {[%clk 0:01:50.7]} 24... Bd6 {[%clk 0:01:27]} 25. f5 {[%clk 0:01:50.4]}
25... Bh7 {[%clk 0:01:25.1]} 26. g4 {[%clk 0:01:50.7]} 26... Re3 {[%clk
0:01:23.7]} 27. Kf2 {[%clk 0:01:27]} 27... Rxh3 {[%clk 0:01:21.5]} 28. Rh1
{[%clk 0:01:27.5]} 28... Rxh1 {[%clk 0:01:18.2]} 29. Rxh1 {[%clk 0:01:28.4]}
29... Bg3+ {[%clk 0:01:17.7]} 30. Kf3 {[%clk 0:01:24.9]} 30... Rb4 {[%clk
0:01:14.8]} 31. c4 {[%clk 0:01:23.7]} 31... Kh6 {[%clk 0:01:08.8]} 32. Nc3
{[%clk 0:00:33.9]} 32... Kg5 {[%clk 0:01:05.5]} 33. Ne2 {[%clk 0:00:33.7]} 33...
Be5 {[%clk 0:01:02.6]} 34. Ng1 {[%clk 0:00:31.3]} 34... a4 {[%clk 0:00:59.8]}
35. Nh3+ {[%clk 0:00:30.2]} 35... Kh6 {[%clk 0:00:59.7]} 36. Rb1 {[%clk
0:00:29.8]} 36... Kg7 {[%clk 0:00:50.9]} 37. Nf4 {[%clk 0:00:17.2]} 37... Kf8
{[%clk 0:00:47.2]} 38. Nh3 {[%clk 0:00:04.8]} 38... Ke7 {[%clk 0:00:46]} 39. g5
{[%clk 0:00:04.9]} 39... fxg5 {[%clk 0:00:41.2]} 40. Nxg5 {[%clk 0:00:05.8]}
40... Bg8 {[%clk 0:00:41.9]} 41. Kg4 {[%clk 0:00:06.2]} 41... f6 {[%clk
0:00:39.5]} 42. Nf3 {[%clk 0:00:05.5]} 42... dxc4 {[%clk 0:00:37.8]} 43. bxc4
{[%clk 0:00:06]} 43... Rxb1 {[%clk 0:00:34.6]} 44. Bxb1 {[%clk 0:00:06.9]} 44...
Bxc4 {[%clk 0:00:35.3]} 45. Nxh4 {[%clk 0:00:07.4]} 45... Kd6 {[%clk 0:00:30.5]}
46. Kf3 {[%clk 0:00:07.7]} 46... Kc5 {[%clk 0:00:29]} 47. Ke4 {[%clk 0:00:07.4]}
47... Kb4 {[%clk 0:00:26.7]} 48. Nf3 {[%clk 0:00:08.3]} 48... Bc3 {[%clk
0:00:19.5]} 49. Nd4 {[%clk 0:00:08.1]} 49... Bxd4 {[%clk 0:00:16.4]} 50. Kxd4
{[%clk 0:00:09]} 50... c5+ {[%clk 0:00:17.3]} 51. Ke3 {[%clk 0:00:08.5]} 51...
Ka3 {[%clk 0:00:18.2]} 52. Kd2 {[%clk 0:00:08.3]} 52... Bxa2 {[%clk 0:00:18.2]}
53. Bc2 {[%clk 0:00:09.2]} 53... Bb3 {[%clk 0:00:18.6]} 54. Be4 {[%clk
0:00:09.8]} 54... Kb4 {[%clk 0:00:18.3]} 55. Kc1 {[%clk 0:00:09.3]} 55... a3
{[%clk 0:00:19]} 56. Kb1 {[%clk 0:00:09.3]} 56... Kc3 {[%clk 0:00:19.5]} 57. Ka1
{[%clk 0:00:07]} 57... Bc2 {[%clk 0:00:19.5]} 58. Bd5 {[%clk 0:00:07.1]} 58...
Bxf5 {[%clk 0:00:19.7]} 59. Ka2 {[%clk 0:00:07.7]} 59... Kb4 {[%clk 0:00:20.3]}
0-1